[Event "Titled Tuesday Blitz June 28 Early 2022"]
[White "Sirosh, Ilja"]
[Black "Vifleemskaia, Svetlana"]
[WhiteFideId "4500458"]
[BlackFideId "4129490"]
[WhiteElo "2241"]
[BlackElo "1929"]
[Result "1-0"]
[Round "08"]
[TimeControl "180+1"]
[Date "2022.06.28"]
[WhiteClock "0:01:03"]
[BlackClock "0:00:46"]

1. c4 {[%clk 0:03:00]}  c5 {[%clk 0:02:58]} 2. Nf3 {[%clk 0:02:59]}  Nc6 {[%clk 0:02:59]} 3. Nc3 {[%clk 0:02:57]}  Nf6 {[%clk 0:02:59]} 4. g3 {[%clk 0:02:57]}  e5 {[%clk 0:02:59]} 5. Bg2 {[%clk 0:02:55]}  a6 {[%clk 0:02:58]} 6. O-O {[%clk 0:02:46]}  d6 {[%clk 0:02:54]} 7. d3 {[%clk 0:02:42]}  Nd4 {[%clk 0:02:53]} 8. Nxd4 {[%clk 0:02:37]}  cxd4 {[%clk 0:02:54]} 9. Nd5 {[%clk 0:02:36]}  Nxd5 {[%clk 0:02:51]} 10. Bxd5 {[%clk 0:02:37]}  h5 {[%clk 0:02:49]} 11. Qa4+ {[%clk 0:02:36]}  Bd7 {[%clk 0:02:49]} 12. Qb3 {[%clk 0:02:36]}  h4 {[%clk 0:02:48]} 13. Qxb7 {[%clk 0:02:28]}  hxg3 {[%clk 0:02:44]} 14. Qxa8 {[%clk 0:02:25]}  gxh2+ {[%clk 0:02:39]} 15. Kh1 {[%clk 0:02:24]}  Bc8 {[%clk 0:02:36]} 16. Bd2 {[%clk 0:01:55]}  Bg4 {[%clk 0:01:56]} 17. Bxf7+ {[%clk 0:01:45]}  Kd7 {[%clk 0:01:46]} 18. Qxd8+ {[%clk 0:01:42]}  Kxd8 {[%clk 0:01:47]} 19. Bg5+ {[%clk 0:01:42]}  Kd7 {[%clk 0:01:42]} 20. f3 {[%clk 0:01:42]}  Bf5 {[%clk 0:01:41]} 21. Rf2 {[%clk 0:01:41]}  Be7 {[%clk 0:01:09]} 22. Bxe7 {[%clk 0:01:40]}  Kxe7 {[%clk 0:01:10]} 23. Bd5 {[%clk 0:01:41]}  Rb8 {[%clk 0:01:05]} 24. Rb1 {[%clk 0:01:40]}  a5 {[%clk 0:01:02]} 25. Rxh2 {[%clk 0:01:40]}  a4 {[%clk 0:01:03]} 26. Kg2 {[%clk 0:01:36]}  a3 {[%clk 0:01:03]} 27. b4 {[%clk 0:01:36]}  g6 {[%clk 0:01:01]} 28. Rh7+ {[%clk 0:01:34]}  Kf6 {[%clk 0:01:00]} 29. Kg3 {[%clk 0:01:34]}  Kg5 {[%clk 0:01:00]} 30. b5 {[%clk 0:01:32]}  Bh3 {[%clk 0:00:44]} 31. Rxh3 {[%clk 0:01:29]}  Rc8 {[%clk 0:00:36]} 32. Rbh1 {[%clk 0:01:28]}  Rd8 {[%clk 0:00:35]} 33. Rh6 {[%clk 0:01:28]}  e4 {[%clk 0:00:34]} 34. Bxe4 {[%clk 0:01:28]}  Rg8 {[%clk 0:00:30]} 35. Rxg6+ {[%clk 0:01:28]}  Rxg6 {[%clk 0:00:30]} 36. Bxg6 {[%clk 0:01:28]}  d5 {[%clk 0:00:31]} 37. cxd5 {[%clk 0:01:25]}  Kf6 {[%clk 0:00:31]} 38. b6 {[%clk 0:01:24]}  Ke5 {[%clk 0:00:31]} 39. Be4 {[%clk 0:01:23]}  Kd6 {[%clk 0:00:32]} 40. Rc1 {[%clk 0:01:22]}  Ke5 {[%clk 0:00:30]} 41. f4+ {[%clk 0:01:19]}  Kf6 {[%clk 0:00:30]} 42. Rc4 {[%clk 0:01:18]}  Kg7 {[%clk 0:00:31]} 43. Rxd4 {[%clk 0:01:19]}  Kh6 {[%clk 0:00:32]} 44. Ra4 {[%clk 0:01:19]}  Kh5 {[%clk 0:00:32]} 45. Rxa3 {[%clk 0:01:20]}  Kh6 {[%clk 0:00:33]} 46. Rc3 {[%clk 0:01:21]}  Kg7 {[%clk 0:00:33]} 47. a4 {[%clk 0:01:22]}  Kf6 {[%clk 0:00:34]} 48. a5 {[%clk 0:01:23]}  Ke7 {[%clk 0:00:35]} 49. a6 {[%clk 0:01:24]}  Kd6 {[%clk 0:00:36]} 50. a7 {[%clk 0:01:25]}  Ke7 {[%clk 0:00:37]} 51. b7 {[%clk 0:01:25]}  Kf7 {[%clk 0:00:37]} 52. Kg4 {[%clk 0:01:26]}  Kf6 {[%clk 0:00:38]} 53. d4 {[%clk 0:01:25]}  Kg7 {[%clk 0:00:39]} 54. Bf5 {[%clk 0:01:24]}  Kg8 {[%clk 0:00:40]} 55. Rc7 {[%clk 0:01:22]}  Kf8 {[%clk 0:00:39]} 56. d6 {[%clk 0:01:22]}  Ke8 {[%clk 0:00:40]} 57. e4 {[%clk 0:01:22]}  Kd8 {[%clk 0:00:41]} 58. e5 {[%clk 0:01:23]}  Ke8 {[%clk 0:00:42]} 59. Kg5 {[%clk 0:01:23]}  Kf8 {[%clk 0:00:43]} 60. d5 {[%clk 0:01:22]}  Kg8 {[%clk 0:00:44]} 61. e6 {[%clk 0:01:23]}  Kh8 {[%clk 0:00:45]} 62. Kf6 {[%clk 0:01:23]}  Kg8 {[%clk 0:00:45]} 63. e7 {[%clk 0:01:23]}  Kh8 {[%clk 0:00:45]} 64. d7 {[%clk 0:01:23]}  Kg8 {[%clk 0:00:46]} 65. Be6+ {[%clk 0:01:22]}  Kh8 {[%clk 0:00:47]} 66. Kf7 {[%clk 0:01:22]}  Kh7 {[%clk 0:00:48]} 67. f5 {[%clk 0:01:23]}  Kh6 {[%clk 0:00:48]} 68. f6 {[%clk 0:01:24]}  Kh5 {[%clk 0:00:49]} 69. d6 {[%clk 0:01:24]}  Kg5 {[%clk 0:00:50]} 70. a8=Q {[%clk 0:01:23]}  Kf4 {[%clk 0:00:51]} 71. b8=Q {[%clk 0:01:23]}  Ke5 {[%clk 0:00:52]} 72. d8=Q {[%clk 0:01:23]}  Kf4 {[%clk 0:00:52]} 73. e8=Q {[%clk 0:01:24]}  Kg3 {[%clk 0:00:51]} 74. Qdc8 {[%clk 0:01:23]}  Kf4 {[%clk 0:00:49]} 75. d7 {[%clk 0:01:23]}  Kg5 {[%clk 0:00:50]} 76. d8=Q {[%clk 0:01:24]}  Kh5 {[%clk 0:00:50]} 77. Kf8+ {[%clk 0:01:21]}  Kg5 {[%clk 0:00:51]} 78. f7+ {[%clk 0:01:21]}  Kh6 {[%clk 0:00:50]} 79. Kg8 {[%clk 0:01:20]}  Kg6 {[%clk 0:00:50]} 80. Rc1 {[%clk 0:01:11]}  Kh6 {[%clk 0:00:50]} 81. Rh1+ {[%clk 0:01:11]}  Kg6 {[%clk 0:00:49]} 82. Rg1+ {[%clk 0:01:07]}  Kh6 {[%clk 0:00:47]} 83. Kh8 {[%clk 0:01:04]}  Kh5 {[%clk 0:00:46]} 84. Rg8 {[%clk 0:01:05]}  Kh6 {[%clk 0:00:46]} 85. f8=Q# {[%clk 0:01:03]} 1-0


[Site "https://www.chess.com"]

[Event "Titled Tuesday Blitz June 28 Early 2022"]
[White "Skliarov, Viktor"]
[Black "Garv Gaur"]
[WhiteFideId "14106736"]
[BlackFideId "45030839"]
[WhiteElo "2229"]
[BlackElo "1950"]
[Result "1-0"]
[Round "08"]
[TimeControl "180+1"]
[Date "2022.06.28"]
[WhiteClock "0:00:41"]
[BlackClock "0:00:50"]

1. e4 {[%clk 0:02:52]}  c6 {[%clk 0:02:58]} 2. d4 {[%clk 0:02:52]}  d5 {[%clk 0:02:59]} 3. e5 {[%clk 0:02:52]}  Bf5 {[%clk 0:02:59]} 4. Nf3 {[%clk 0:02:53]}  e6 {[%clk 0:02:59]} 5. Be2 {[%clk 0:02:53]}  Nd7 {[%clk 0:02:59]} 6. O-O {[%clk 0:02:53]}  Ne7 {[%clk 0:02:59]} 7. a4 {[%clk 0:02:53]}  h6 {[%clk 0:02:52]} 8. a5 {[%clk 0:02:53]}  a6 {[%clk 0:02:51]} 9. b4 {[%clk 0:02:52]}  g5 {[%clk 0:02:47]} 10. c3 {[%clk 0:02:51]}  Bg7 {[%clk 0:02:47]} 11. Ne1 {[%clk 0:02:42]}  Ng6 {[%clk 0:02:37]} 12. g4 {[%clk 0:02:31]}  Be4 {[%clk 0:02:35]} 13. f3 {[%clk 0:02:28]}  Bxb1 {[%clk 0:02:35]} 14. Rxb1 {[%clk 0:02:29]}  Qc7 {[%clk 0:01:59]} 15. Ng2 {[%clk 0:02:22]}  O-O-O {[%clk 0:01:58]} 16. f4 {[%clk 0:02:09]}  gxf4 {[%clk 0:01:49]} 17. Nxf4 {[%clk 0:02:09]}  Nxf4 {[%clk 0:01:49]} 18. Bxf4 {[%clk 0:02:08]}  Rdg8 {[%clk 0:01:49]} 19. Kh1 {[%clk 0:02:03]}  Bf8 {[%clk 0:01:43]} 20. c4 {[%clk 0:02:00]}  dxc4 {[%clk 0:01:35]} 21. Bxc4 {[%clk 0:02:00]}  Be7 {[%clk 0:01:35]} 22. Qf3 {[%clk 0:01:38]}  Rh7 {[%clk 0:01:33]} 23. Rbc1 {[%clk 0:01:25]}  Kb8 {[%clk 0:01:25]} 24. b5 {[%clk 0:01:16]}  axb5 {[%clk 0:01:19]} 25. Bxb5 {[%clk 0:01:05]}  Qxa5 {[%clk 0:01:19]} 26. Bd3 {[%clk 0:00:58]}  Nb6 {[%clk 0:01:17]} 27. Bxh7 {[%clk 0:00:56]}  Rd8 {[%clk 0:01:06]} 28. Ra1 {[%clk 0:00:48]}  Qb4 {[%clk 0:00:51]} 29. Rfb1 {[%clk 0:00:46]}  Qxd4 {[%clk 0:00:50]} 30. Be3 {[%clk 0:00:42]}  Qd3 {[%clk 0:00:50]} 31. Bxd3 {[%clk 0:00:41]} 1-0


[Site "https://www.chess.com"]

[Event "Titled Tuesday Blitz June 28 Early 2022"]
[White "Snehal, Bhosale"]
[Black "Sarkar, Justin"]
[WhiteFideId "5021995"]
[BlackFideId "2010011"]
[WhiteElo "2103"]
[BlackElo "2020"]
[Result "0-1"]
[Round "08"]
[TimeControl "180+1"]
[Date "2022.06.28"]
[WhiteClock "0:00:22"]
[BlackClock "0:00:04"]

1. d4 {[%clk 0:03:00]}  Nf6 {[%clk 0:02:55]} 2. c4 {[%clk 0:03:01]}  e6 {[%clk 0:02:53]} 3. Nc3 {[%clk 0:03:01]}  Bb4 {[%clk 0:02:52]} 4. Qc2 {[%clk 0:03:02]}  c5 {[%clk 0:02:44]} 5. dxc5 {[%clk 0:03:01]}  Na6 {[%clk 0:02:43]} 6. a3 {[%clk 0:02:59]}  Bxc3+ {[%clk 0:02:41]} 7. Qxc3 {[%clk 0:03:00]}  Nxc5 {[%clk 0:02:41]} 8. f3 {[%clk 0:03:01]}  d6 {[%clk 0:02:38]} 9. b4 {[%clk 0:02:59]}  Na4 {[%clk 0:02:26]} 10. Qb3 {[%clk 0:02:52]}  Bd7 {[%clk 0:02:21]} 11. Bg5 {[%clk 0:02:49]}  a5 {[%clk 0:02:11]} 12. Rd1 {[%clk 0:02:46]}  axb4 {[%clk 0:01:58]} 13. axb4 {[%clk 0:02:47]}  Qb6 {[%clk 0:01:53]} 14. Be3 {[%clk 0:02:37]}  Qc7 {[%clk 0:01:49]} 15. Bd4 {[%clk 0:02:14]}  e5 {[%clk 0:01:44]} 16. Bf2 {[%clk 0:02:13]}  b5 {[%clk 0:01:18]} 17. e4 {[%clk 0:01:43]}  O-O {[%clk 0:01:04]} 18. Nh3 {[%clk 0:01:25]}  bxc4 {[%clk 0:00:41]} 19. Bxc4 {[%clk 0:01:23]}  Nb6 {[%clk 0:00:25]} 20. Bd5 {[%clk 0:01:04]}  Ba4 {[%clk 0:00:14]} 21. Qe3 {[%clk 0:00:51]}  Nbxd5 {[%clk 0:00:08]} 22. Rxd5 {[%clk 0:00:49]}  Nxd5 {[%clk 0:00:07]} 23. exd5 {[%clk 0:00:50]}  Qc4 {[%clk 0:00:06]} 24. Bh4 {[%clk 0:00:42]}  Bb5 {[%clk 0:00:06]} 25. Kf2 {[%clk 0:00:42]}  Qxh4+ {[%clk 0:00:04]} 26. g3 {[%clk 0:00:40]}  Qxh3 {[%clk 0:00:05]} 27. Qb3 {[%clk 0:00:37]}  Rfc8 {[%clk 0:00:04]} 28. Ke3 {[%clk 0:00:33]}  Bc4 {[%clk 0:00:04]} 29. Qc3 {[%clk 0:00:32]}  Ra2 {[%clk 0:00:04]} 30. Ra1 {[%clk 0:00:27]}  Qh6+ {[%clk 0:00:04]} 31. f4 {[%clk 0:00:25]}  exf4+ {[%clk 0:00:04]} 32. gxf4 {[%clk 0:00:21]}  Qh3+ {[%clk 0:00:04]} 33. Kd4 {[%clk 0:00:21]}  Qxc3+ {[%clk 0:00:03]} 34. Kxc3 {[%clk 0:00:22]}  Rxa1 {[%clk 0:00:04]} 0-1


[Site "https://www.chess.com"]

[Event "Titled Tuesday Blitz June 28 Early 2022"]
[White "Starozhilov, Leonid"]
[Black "Hollan, Petr"]
[WhiteFideId "14106752"]
[BlackFideId "360945"]
[WhiteElo "2414"]
[BlackElo "2284"]
[Result "1/2-1/2"]
[Round "08"]
[TimeControl "180+1"]
[Date "2022.06.28"]
[WhiteClock "0:00:09"]
[BlackClock "0:00:22"]

1. e4 {[%clk 0:03:00]}  c5 {[%clk 0:02:59]} 2. Nf3 {[%clk 0:03:00]}  Nc6 {[%clk 0:02:53]} 3. Bb5 {[%clk 0:02:59]}  e6 {[%clk 0:02:53]} 4. O-O {[%clk 0:02:59]}  Nge7 {[%clk 0:02:53]} 5. Re1 {[%clk 0:02:59]}  Nd4 {[%clk 0:02:52]} 6. Nxd4 {[%clk 0:02:57]}  cxd4 {[%clk 0:02:53]} 7. c3 {[%clk 0:02:58]}  a6 {[%clk 0:02:52]} 8. Bf1 {[%clk 0:02:53]}  Nc6 {[%clk 0:02:52]} 9. Na3 {[%clk 0:02:51]}  Bc5 {[%clk 0:02:51]} 10. Nc2 {[%clk 0:02:49]}  O-O {[%clk 0:02:51]} 11. b4 {[%clk 0:02:46]}  Bb6 {[%clk 0:02:51]} 12. Bb2 {[%clk 0:02:45]}  e5 {[%clk 0:02:50]} 13. cxd4 {[%clk 0:02:30]}  exd4 {[%clk 0:02:48]} 14. Bc4 {[%clk 0:02:27]}  Ne5 {[%clk 0:02:34]} 15. d3 {[%clk 0:02:21]}  Nc6 {[%clk 0:02:10]} 16. a4 {[%clk 0:02:07]}  d6 {[%clk 0:02:07]} 17. b5 {[%clk 0:02:05]}  Ne5 {[%clk 0:01:58]} 18. Nxd4 {[%clk 0:01:56]}  Qf6 {[%clk 0:01:51]} 19. Qd2 {[%clk 0:01:25]}  Be6 {[%clk 0:01:44]} 20. bxa6 {[%clk 0:01:10]}  Bxc4 {[%clk 0:01:41]} 21. axb7 {[%clk 0:01:03]}  Rab8 {[%clk 0:01:41]} 22. Nc6 {[%clk 0:00:55]}  Be6 {[%clk 0:00:58]} 23. Nxb8 {[%clk 0:00:46]}  Rxb8 {[%clk 0:00:57]} 24. Bxe5 {[%clk 0:00:41]}  dxe5 {[%clk 0:00:45]} 25. a5 {[%clk 0:00:41]}  Ba7 {[%clk 0:00:35]} 26. a6 {[%clk 0:00:40]}  Qd8 {[%clk 0:00:34]} 27. Rec1 {[%clk 0:00:27]}  f6 {[%clk 0:00:30]} 28. Qc3 {[%clk 0:00:25]}  Qb6 {[%clk 0:00:24]} 29. Qc7 {[%clk 0:00:15]}  Qxf2+ {[%clk 0:00:22]} 30. Kh1 {[%clk 0:00:16]}  h5 {[%clk 0:00:20]} 31. Qxb8+ {[%clk 0:00:10]}  Bxb8 {[%clk 0:00:19]} 32. Rc8+ {[%clk 0:00:10]}  Kh7 {[%clk 0:00:19]} 33. Rxb8 {[%clk 0:00:09]}  Bh3 {[%clk 0:00:19]} 34. Rg1 {[%clk 0:00:06]}  Bxg2+ {[%clk 0:00:19]} 35. Rxg2 {[%clk 0:00:07]}  Qf1+ {[%clk 0:00:19]} 36. Rg1 {[%clk 0:00:08]}  Qf3+ {[%clk 0:00:20]} 37. Rg2 {[%clk 0:00:08]}  Qf1+ {[%clk 0:00:21]} 38. Rg1 {[%clk 0:00:08]}  Qf3+ {[%clk 0:00:22]} 39. Rg2 {[%clk 0:00:09]}  Qf1+ {[%clk 0:00:22]} 1/2-1/2


[Site "https://www.chess.com"]

[Event "Titled Tuesday Blitz June 28 Early 2022"]
[White "Thiel, Thomas"]
[Black "Li, Zhuoling"]
[WhiteFideId "4615964"]
[BlackFideId "8605629"]
[WhiteElo "2244"]
[BlackElo "2293"]
[Result "1/2-1/2"]
[Round "08"]
[TimeControl "180+1"]
[Date "2022.06.28"]
[WhiteClock "0:01:31"]
[BlackClock "0:00:04"]

1. e4 {[%clk 0:03:00]}  d5 {[%clk 0:02:58]} 2. exd5 {[%clk 0:02:59]}  Qd6 {[%clk 0:02:58]} 3. c4 {[%clk 0:02:56]}  c6 {[%clk 0:02:55]} 4. d4 {[%clk 0:02:54]}  cxd5 {[%clk 0:02:53]} 5. Nc3 {[%clk 0:02:53]}  Nf6 {[%clk 0:02:39]} 6. Nf3 {[%clk 0:02:52]}  Bg4 {[%clk 0:02:34]} 7. Qb3 {[%clk 0:02:49]}  Bxf3 {[%clk 0:02:14]} 8. gxf3 {[%clk 0:02:49]}  Nc6 {[%clk 0:01:57]} 9. cxd5 {[%clk 0:02:42]}  Nd8 {[%clk 0:00:47]} 10. Bb5+ {[%clk 0:02:39]}  Nd7 {[%clk 0:00:45]} 11. O-O {[%clk 0:02:33]}  a6 {[%clk 0:00:43]} 12. Bxd7+ {[%clk 0:02:30]}  Qxd7 {[%clk 0:00:43]} 13. Ne4 {[%clk 0:02:24]}  g6 {[%clk 0:00:33]} 14. Nc5 {[%clk 0:02:23]}  Qb5 {[%clk 0:00:31]} 15. Qxb5+ {[%clk 0:02:20]}  axb5 {[%clk 0:00:31]} 16. Re1 {[%clk 0:02:19]}  Bg7 {[%clk 0:00:28]} 17. d6 {[%clk 0:02:19]}  e6 {[%clk 0:00:24]} 18. Bg5 {[%clk 0:02:14]}  b6 {[%clk 0:00:18]} 19. d7+ {[%clk 0:02:10]}  Kf8 {[%clk 0:00:18]} 20. Bxd8 {[%clk 0:02:10]}  Rxd8 {[%clk 0:00:17]} 21. Ne4 {[%clk 0:02:06]}  Rxd7 {[%clk 0:00:17]} 22. Rac1 {[%clk 0:02:04]}  Bxd4 {[%clk 0:00:16]} 23. b3 {[%clk 0:02:03]}  Kg7 {[%clk 0:00:15]} 24. Kg2 {[%clk 0:02:02]}  h5 {[%clk 0:00:14]} 25. Rc6 {[%clk 0:02:01]}  e5 {[%clk 0:00:12]} 26. Nd6 {[%clk 0:01:54]}  Ra7 {[%clk 0:00:10]} 27. Re2 {[%clk 0:01:40]}  Rha8 {[%clk 0:00:07]} 28. Nxb5 {[%clk 0:01:35]}  Rxa2 {[%clk 0:00:07]} 29. Rxa2 {[%clk 0:01:32]}  Rxa2 {[%clk 0:00:06]} 30. Nxd4 {[%clk 0:01:32]}  exd4 {[%clk 0:00:06]} 31. Rxb6 {[%clk 0:01:33]}  Rb2 {[%clk 0:00:06]} 32. Rd6 {[%clk 0:01:32]}  Rxb3 {[%clk 0:00:05]} 33. Rxd4 {[%clk 0:01:31]}  f5 {[%clk 0:00:04]} 1/2-1/2


[Site "https://www.chess.com"]

[Event "Titled Tuesday Blitz June 28 Early 2022"]
[White "Vokhidov, Shamsiddin"]
[Black "Narayanan, Srinath"]
[WhiteFideId "14204223"]
[BlackFideId "5018420"]
[WhiteElo "2918"]
[BlackElo "2773"]
[Result "1-0"]
[Round "08"]
[TimeControl "180+1"]
[Date "2022.06.28"]
[WhiteClock "0:01:34"]
[BlackClock "0:01:41"]

1. e4 {[%clk 0:03:00]}  e5 {[%clk 0:02:59]} 2. Nf3 {[%clk 0:03:01]}  Nc6 {[%clk 0:03:00]} 3. Nc3 {[%clk 0:03:01]}  Nf6 {[%clk 0:03:00]} 4. a3 {[%clk 0:03:02]}  d5 {[%clk 0:02:57]} 5. Bb5 {[%clk 0:03:02]}  Nxe4 {[%clk 0:02:46]} 6. Qe2 {[%clk 0:03:01]}  Nxc3 {[%clk 0:02:43]} 7. Qxe5+ {[%clk 0:03:01]}  Be6 {[%clk 0:02:41]} 8. Qxc3 {[%clk 0:02:52]}  Bd7 {[%clk 0:02:34]} 9. O-O {[%clk 0:02:50]}  Qf6 {[%clk 0:02:21]} 10. Re1+ {[%clk 0:02:47]}  Be7 {[%clk 0:02:21]} 11. Qxf6 {[%clk 0:02:45]}  gxf6 {[%clk 0:02:22]} 12. d4 {[%clk 0:02:45]}  Kd8 {[%clk 0:02:16]} 13. Bf4 {[%clk 0:02:42]}  Ne5 {[%clk 0:01:59]} 14. Nxe5 {[%clk 0:02:21]}  fxe5 {[%clk 0:01:55]} 15. Bxe5 {[%clk 0:02:22]}  f6 {[%clk 0:01:53]} 16. Bxc7+ {[%clk 0:02:21]}  Ke8 {[%clk 0:01:46]} 17. Bd6 {[%clk 0:02:18]}  Bxb5 {[%clk 0:01:46]} 18. Rxe7+ {[%clk 0:02:18]}  Kd8 {[%clk 0:01:46]} 19. Rxb7 {[%clk 0:02:17]}  Bc6 {[%clk 0:01:45]} 20. Rc7 {[%clk 0:02:10]}  Rc8 {[%clk 0:01:44]} 21. Rxa7 {[%clk 0:02:09]}  Bd7 {[%clk 0:01:44]} 22. Bc5 {[%clk 0:02:04]}  Re8 {[%clk 0:01:45]} 23. Bb6+ {[%clk 0:02:01]}  Ke7 {[%clk 0:01:44]} 24. Re1+ {[%clk 0:02:01]}  Kd6 {[%clk 0:01:45]} 25. Bc5+ {[%clk 0:02:00]}  Kc6 {[%clk 0:01:44]} 26. Rxe8 {[%clk 0:01:57]}  Rxe8 {[%clk 0:01:45]} 27. f3 {[%clk 0:01:52]}  Re2 {[%clk 0:01:44]} 28. Ra6+ {[%clk 0:01:50]}  Kb7 {[%clk 0:01:45]} 29. Rxf6 {[%clk 0:01:48]}  Rxc2 {[%clk 0:01:45]} 30. Rf7 {[%clk 0:01:48]}  Kc6 {[%clk 0:01:45]} 31. Rxh7 {[%clk 0:01:48]}  Rxb2 {[%clk 0:01:46]} 32. h4 {[%clk 0:01:48]}  Bf5 {[%clk 0:01:45]} 33. Rh6+ {[%clk 0:01:48]}  Kc7 {[%clk 0:01:45]} 34. h5 {[%clk 0:01:45]}  Bd3 {[%clk 0:01:41]} 35. Re6 {[%clk 0:01:36]}  Rb1+ {[%clk 0:01:40]} 36. Kh2 {[%clk 0:01:35]}  Rb2 {[%clk 0:01:41]} 37. h6 {[%clk 0:01:34]} 1-0


[Site "https://www.chess.com"]

[Event "Titled Tuesday Blitz June 28 Early 2022"]
[White "Warmerdam, Max"]
[Black "Marjanovic, Annamaria"]
[WhiteFideId "1048104"]
[BlackFideId "750930"]
[WhiteElo "2537"]
[BlackElo "2156"]
[Result "1-0"]
[Round "08"]
[TimeControl "180+1"]
[Date "2022.06.28"]
[WhiteClock "0:00:36"]
[BlackClock "0:00:10"]

1. e4 {[%clk 0:03:00]}  c6 {[%clk 0:02:59]} 2. d4 {[%clk 0:03:00]}  d5 {[%clk 0:02:58]} 3. e5 {[%clk 0:03:01]}  c5 {[%clk 0:02:56]} 4. Nf3 {[%clk 0:03:01]}  Nc6 {[%clk 0:02:55]} 5. Bb5 {[%clk 0:02:58]}  Bd7 {[%clk 0:02:48]} 6. c3 {[%clk 0:02:54]}  e6 {[%clk 0:02:45]} 7. Bxc6 {[%clk 0:02:50]}  Bxc6 {[%clk 0:02:45]} 8. O-O {[%clk 0:02:49]}  Ne7 {[%clk 0:02:42]} 9. dxc5 {[%clk 0:02:41]}  Ng6 {[%clk 0:02:39]} 10. Be3 {[%clk 0:02:37]}  Qc7 {[%clk 0:02:28]} 11. Bd4 {[%clk 0:02:36]}  Bb5 {[%clk 0:02:23]} 12. Re1 {[%clk 0:02:36]}  Bxc5 {[%clk 0:02:22]} 13. Bxc5 {[%clk 0:02:30]}  Qxc5 {[%clk 0:02:23]} 14. Nd4 {[%clk 0:02:30]}  Ba6 {[%clk 0:02:21]} 15. Nd2 {[%clk 0:02:30]}  O-O {[%clk 0:02:19]} 16. N2f3 {[%clk 0:02:12]}  b5 {[%clk 0:02:05]} 17. a3 {[%clk 0:02:10]}  Bb7 {[%clk 0:02:02]} 18. h4 {[%clk 0:02:10]}  h6 {[%clk 0:01:57]} 19. Qd3 {[%clk 0:02:09]}  a6 {[%clk 0:01:51]} 20. Nxe6 {[%clk 0:02:08]}  fxe6 {[%clk 0:01:42]} 21. Qxg6 {[%clk 0:01:57]}  Rae8 {[%clk 0:01:33]} 22. Nd4 {[%clk 0:01:42]}  Qe7 {[%clk 0:01:29]} 23. Re3 {[%clk 0:01:40]}  Qxh4 {[%clk 0:01:17]} 24. Rg3 {[%clk 0:01:35]}  Rf7 {[%clk 0:01:05]} 25. Nxe6 {[%clk 0:01:26]}  Qe7 {[%clk 0:00:55]} 26. Nd4 {[%clk 0:01:17]}  Qxe5 {[%clk 0:00:45]} 27. Re3 {[%clk 0:01:16]}  Qb8 {[%clk 0:00:44]} 28. Rae1 {[%clk 0:01:17]}  Ref8 {[%clk 0:00:37]} 29. f3 {[%clk 0:01:14]}  Bc8 {[%clk 0:00:31]} 30. Re8 {[%clk 0:00:57]}  Qc7 {[%clk 0:00:22]} 31. R1e2 {[%clk 0:00:43]}  Qf4 {[%clk 0:00:18]} 32. Kf2 {[%clk 0:00:34]}  Qh4+ {[%clk 0:00:17]} 33. Qg3 {[%clk 0:00:33]}  Qxg3+ {[%clk 0:00:16]} 34. Kxg3 {[%clk 0:00:34]}  Rxe8 {[%clk 0:00:16]} 35. Rxe8+ {[%clk 0:00:34]}  Rf8 {[%clk 0:00:17]} 36. Rxf8+ {[%clk 0:00:33]}  Kxf8 {[%clk 0:00:18]} 37. Kf4 {[%clk 0:00:34]}  Ke7 {[%clk 0:00:17]} 38. Ke5 {[%clk 0:00:34]}  Bb7 {[%clk 0:00:17]} 39. Nf5+ {[%clk 0:00:35]}  Kf8 {[%clk 0:00:16]} 40. Ne3 {[%clk 0:00:34]}  d4 {[%clk 0:00:15]} 41. cxd4 {[%clk 0:00:33]}  Kf7 {[%clk 0:00:14]} 42. d5 {[%clk 0:00:34]}  Ke7 {[%clk 0:00:13]} 43. Nf5+ {[%clk 0:00:34]}  Kf8 {[%clk 0:00:12]} 44. b4 {[%clk 0:00:34]}  g6 {[%clk 0:00:11]} 45. Nxh6 {[%clk 0:00:34]}  Kg7 {[%clk 0:00:10]} 46. Ng4 {[%clk 0:00:34]}  Kf7 {[%clk 0:00:10]} 47. Ne3 {[%clk 0:00:34]}  Ke7 {[%clk 0:00:11]} 48. f4 {[%clk 0:00:35]}  Bc8 {[%clk 0:00:11]} 49. g4 {[%clk 0:00:35]}  Bd7 {[%clk 0:00:10]} 50. g5 {[%clk 0:00:35]}  Bh3 {[%clk 0:00:10]} 51. f5 {[%clk 0:00:35]}  gxf5 {[%clk 0:00:09]} 52. Nxf5+ {[%clk 0:00:36]}  Kf7 {[%clk 0:00:10]} 53. d6 {[%clk 0:00:36]} 1-0


[Site "https://www.chess.com"]